Cogmind - Beta 13 @@@ ROGUE MODE // 2024.04.02 @ 01:45:24 Player: fippe Result: Destroyed by as-08489 with Assembled Heavy Rifle Performance ------------- Evolutions (0) 0 Regions Visited (4) 800 Robots Destroyed (23) 115 Value Destroyed (520) 520 Prototype IDs (0) 0 Alien Tech Used (0) 0 Bonus (0) 0 TOTAL SCORE: 1435 Bonus ------- None Cogmind --------- Core Integrity 0/250 Matter 265/300 Energy 85/100 System Corruption 1% Temperature Cool (0) Movement Walking (120) Location -9/Mines Parts ------- > --- POWER (1) -------- (None) > --- PROPULSION (2) --- Carbon-fiber Leg > --- UTILITY (2) ------ (None) > --- WEAPON (2) ------- Gauss Rifle Makeshift Spear > --- INVENTORY (5) ---- Targeting Computer Makeshift System Shield EM Pulse Gun Light Assault Rifle Peak State ------------ > --- POWER ------------ Light Nuclear Core > --- PROPULSION ------- Carbon-fiber Leg Carbon-fiber Leg > --- UTILITY ---------- Targeting Computer ECM Suite > --- WEAPON ----------- Gauss Rifle Makeshift Spear > --- INVENTORY -------- Targeting Computer Makeshift System Shield EM Pulse Gun Light Assault Rifle Gauss Rifle [Rating: 20] Favorites ----------- Power Light Ion Engine Engine Light Ion Engine Power Core Light Nuclear Core Propulsion Aluminum Leg Leg Aluminum Leg Utility Targeting Computer Device ECM Suite Storage Small Storage Unit Processor Targeting Computer Weapon Light Assault Rifle Energy Gun EM Pulse Gun Ballistic Gun Light Assault Rifle Piercing Weapon Makeshift Spear Build | -11 -10 -10 -10 -9 ------- Run | Yrd Mat Min Exi Min Slots Evolved . | . . . . . Power . | . . . . . Propulsion . | . . . . . Utility . | . . . . . Weapon . | . . . . . Parts Attached 31 | 8 7 9 6 1 Power 4 | 2 . 1 1 . Engine 3 | 2 . 1 . . Core 1 | . . . 1 . Reactor . | . . . . . Propulsion 6 | 2 . 2 2 . Treads . | . . . . . Leg 6 | 2 . 2 2 . Wheel . | . . . . . Hover . | . . . . . Flight . | . . . . . Utility 6 | 2 2 2 . . Device 4 | 1 1 2 . . Storage 1 | 1 . . . . Processor 1 | . 1 . . . Hackware . | . . . . . Protection . | . . . . . Artifact . | . . . . . Weapon 15 | 2 5 4 3 1 Energy Gun 5 | 1 4 . . . Energy Cannon . | . . . . . Ballistic Gun 8 | 1 1 4 2 . Ballistic Cannon . | . . . . . Launcher . | . . . . . Special Weapon . | . . . . . Impact Weapon . | . . . . . Slashing Weapon . | . . . . . Piercing Weapon 2 | . . . 1 1 Special Melee Weapon . | . . . . . Unidentified Prototypes . | . . . . . Parts Lost 7 | . 2 1 . 4 Power . | . . . . . Propulsion 1 | . . . . 1 Utility 4 | . 1 1 . 2 Weapon 2 | . 1 . . 1 Highest Loss Streak 4 | . 2 1 . 4 To Critical Strikes . | . . . . . Average Slot Usage (%) 99 | . 99 99 100 80 Engine 13 | . 14 14 12 . Leg 28 | . 28 28 28 28 Device 10 | . 5 9 14 14 Storage 5 | . 14 4 . . Processor 12 | . 7 14 14 . Energy Gun 2 | . 9 . . . Ballistic Gun 23 | . 17 28 23 28 Piercing Weapon 1 | . . . 4 . Naked Turns . | . . . . . Heaviest Build 15 | 14 15 13 15 15 Greatest Support 30 | 20 20 20 30 30 Greatest Overweight (x) . | . . . . . Average Overweight (x) . | . . . . . Largest Inventory Capacity 8 | 8 8 8 5 5 Average Capacity 6 | 7 8 5 5 5 Most Carried 8 | 2 8 8 5 5 Average Carried 4 | . 5 4 4 4 Final Capacity 8 | 8 8 5 5 5 Final Carried 7 | 2 7 3 5 4 Class Distribution -------------------- 92% | Mutant 7% | Scavenger-Mutant Dominant Class ---------------- Mutant | -10/Materials Mutant | -10/Mines Mutant | -10/Exiles Scavenger-Mutant | -9/Mines Resources | -11 -10 -10 -10 -9 ----------- Run | Yrd Mat Min Exi Min Matter Collected 646 | 296 129 158 63 . Remotely . | . . . . . Salvage Created 702 | 130 243 163 101 65 Parts 42 | 8 14 13 7 . Haulers Intercepted 1 | . 1 . . . Recyclers Shooed . | . . . . . Parts Field Recycled . | . . . . . Retrieved Matter . | . . . . . Parts Self-Destructed . | . . . . . Prevented . | . . . . . Kills | -11 -10 -10 -10 -9 ------- Run | Yrd Mat Min Exi Min Combat Hostiles Destroyed 21 | . 4 10 2 5 Melee 2 | . . . 2 . Guns 18 | . 3 10 . 5 AOE 1 | . 1 . . . Classes Destroyed 8 | 2 3 1 1 1 Tunneler 3 | 3 . . . . Hauler 1 | . 1 . . . Recycler 1 | 1 . . . . Watcher 2 | . 2 . . . Swarmer 9 | . . 9 . . Grunt 5 | . 4 1 . . Hunter 2 | . . . 2 . Assembled 5 | . . . . 5 Best Kill Streak 5 | 2 2 3 2 5 Combat Bots Only 5 | . 2 3 2 5 Max Kills in Single Turn 2 | 1 1 1 1 2 Gunslinging . | . . . . . Exploded 1 | . 1 . . . Melee 1 | . . . 1 . Uniques/NPCs Destroyed . | . . . . . Combat | -11 -10 -10 -10 -9 -------- Run | Yrd Mat Min Exi Min Hostile Shots Fired 104 | . 18 41 . 45 Missed 29 | . 2 9 . 18 Damage Taken 1136 | . 364 295 . 477 Core 255 | . 118 46 . 91 Absorbed by Shields . | . . . . . Core Remaining (%) 100 | 100 . . . . Volleys Fired 87 | 16 36 30 . 5 Largest 2 | 2 2 2 . 2 Hottest 70 | 70 70 40 . 56 Shots Fired 170 | 32 68 60 . 10 Gun 170 | 32 68 60 . 10 Cannon . | . . . . . Launcher . | . . . . . Special . | . . . . . Kinetic 135 | 16 49 60 . 10 Thermal 25 | 16 9 . . . Explosive . | . . . . . Electromagnetic 10 | . 10 . . . Robot Hit Streak 13 | 6 13 12 . 3 Robot Miss Streak 4 | 3 4 3 . 2 Penetration Max 1 | . . . . 1 Secondary Targets 3 | . . 2 . 1 Max Gunslinging Chain 1 | . . 1 . 1 Shots Hit Robots 110 | 19 37 44 4 6 Core Hits 46 | 5 16 18 2 5 Critical Kills 2 | . 1 . . 1 Critical Parts Destroyed 1 | . 1 . . . Critical Strikes 4 | 1 2 . . 1 Burn 1 | 1 . . . . Destroy 3 | . 2 . . 1 Melee Attacks 4 | . . . 4 . Impact . | . . . . . Slashing . | . . . . . Piercing 4 | . . . 4 . Sneak Attacks 4 | . . . 4 . Combat Hostiles 4 | . . . 4 . Follow-up Attacks . | . . . . . Damage Inflicted 1534 | 194 491 385 251 213 Guns 1181 | 194 389 385 . 213 Cannons . | . . . . . Explosions 102 | . 102 . . . Melee 251 | . . . 251 . Ramming . | . . . . . Kinetic 1002 | 93 311 385 . 213 Thermal 203 | 101 102 . . . Explosive . | . . . . . Electromagnetic 78 | . 78 . . . Impact . | . . . . . Slashing . | . . . . . Piercing 251 | . . . 251 . Highest Corruption 1 | . . . . 1 Average Corruption 1 | . . . . 1 Corruption Purged . | . . . . . Corruption Blocked . | . . . . . Effects 1 | . . . . 1 Energy Discharges 1 | . . . . 1 Overload Shots . | . . . . . Overflow Damage . | . . . . . Projectiles . | . . . . . Explosions . | . . . . . Melee . | . . . . . Knockbacks . | . . . . . Impact . | . . . . . Kinetic . | . . . . . Secondary . | . . . . . Self-Inflicted Damage 133 | . 133 . . . Shots 3 | . 3 . . . Rammed . | . . . . . Targets Rammed . | . . . . . Kicked . | . . . . . Crushed . | . . . . . Highest Temperature 106 | 100 106 18 . . Average Temperature 39 | 47 36 11 . . Received Heat Transfer 218 | . 153 45 . 20 Siege Activations . | . . . . . Robots Corrupted . | . . . . . Combat Hostiles . | . . . . . Parts Fried . | . . . . . Impact Corruptions . | . . . . . Robots Melted . | . . . . . Combat Hostiles . | . . . . . Parts Melted . | . . . . . Heat Transferred 470 | 370 100 . . . Parts Sabotaged . | . . . . . Parts Stolen . | . . . . . Parts Stripped . | . . . . . Power Chain Reactions 2 | . 2 . . . Alert | -11 -10 -10 -10 -9 ------- Run | Yrd Mat Min Exi Min Peak Influence 288 | 20 185 288 . . Initial 33 | . 13 33 . . Average 100 | 8 63 151 . . Maximum Alert Level 1 | . . 1 . . Low Security (%) 88 | 100 100 75 . 100 Level 1 11 | . . 24 . . Level 2 . | . . . . . Level 3 . | . . . . . Level 4 . | . . . . . Level 5 . | . . . . . High Security . | . . . . . Max Security . | . . . . . Squads Dispatched 1 | . 1 . . . Investigation . | . . . . . Extermination . | . . . . . Reinforcement 1 | . 1 . . . Assault . | . . . . . Garrison . | . . . . . Intercept . | . . . . . Searches Triggered . | . . . . . Construction Impeded . | . . . . . Haulers Reinforced . | . . . . . Active Scanning Responses . | . . . . . Cargo Convoy Interrupts . | . . . . . Stealth | -11 -10 -10 -10 -9 --------- Run | Yrd Mat Min Exi Min Distress Signals . | . . . . . Communications Jammed . | . . . . . Distress Signals . | . . . . . Times Spotted 46 | . 12 10 . 24 Peak Tracking Total 20 | . 3 3 . 20 Tactical Retreats 1 | . . . . 1 Traps | -11 -10 -10 -10 -9 ------- Run | Yrd Mat Min Exi Min Traps Triggered . | . . . . . Indirectly . | . . . . . Trap Hack Attempts . | . . . . . Triggered . | . . . . . Disarmed . | . . . . . Reprogrammed . | . . . . . Reused . | . . . . . Traps Extracted . | . . . . . Installed . | . . . . . Triggered 1 | . . 1 . . Machines | -11 -10 -10 -10 -9 ---------- Run | Yrd Mat Min Exi Min Machines Disabled 5 | . 5 . . . Max in Single Turn 2 | . 2 . . . Machines Repaired . | . . . . . Machines Dismantled . | . . . . . Machines Sabotaged . | . . . . . Overloaded Fab Kills . | . . . . . Hacking | -11 -10 -10 -10 -9 --------- Run | Yrd Mat Min Exi Min Machines Accessed 5 | . 3 . 2 . Terminals 3 | . 3 . . . Fabricators . | . . . . . Repair Stations . | . . . . . Recycling Units . | . . . . . Scanalyzers . | . . . . . Garrison Access . | . . . . . Total Hacks 40 | . 8 . 32 . Successful 37 | . 5 . 32 . Failed 3 | . 3 . . . Catastrophic 1 | . 1 . . . Database Lockouts . | . . . . . Manual 7 | . 7 . . . Terminals 8 | . 8 . . . Fabricators . | . . . . . Repair Stations . | . . . . . Recycling Units . | . . . . . Scanalyzers . | . . . . . Garrison Access . | . . . . . Terminal Hacks 37 | . 5 . 32 . Record 33 | . 1 . 32 . Robot Analysis 4 | . 4 . . . Fabricator Hacks . | . . . . . Repair Station Hacks . | . . . . . Recycling Unit Hacks . | . . . . . Scanalyzer . | . . . . . Garrison Access Hacks . | . . . . . Unauthorized Hacks . | . . . . . Terminals . | . . . . . Fabricators . | . . . . . Repair Stations . | . . . . . Recycling Units . | . . . . . Scanalyzers . | . . . . . Garrison Access . | . . . . . Data Cores Recovered . | . . . . . Used . | . . . . . Hacking Detections 3 | . 3 . . . Full Trace Events . | . . . . . Feedback Events . | . . . . . Feedback Blocked . | . . . . . Robot Schematics Acquired . | . . . . . Robots Built . | . . . . . Authchips . | . . . . . Time . | . . . . . Total Robot Build Rating . | . . . . . Part Schematics Acquired . | . . . . . Parts Built . | . . . . . Authchips . | . . . . . Time . | . . . . . Total Part Build Rating . | . . . . . Parts Repaired . | . . . . . Time . | . . . . . Parts Recycled . | . . . . . Recycled Matter . | . . . . . Retrieved Matter . | . . . . . Retrieved Components . | . . . . . Parts Scanalyzed . | . . . . . Part Schematics Acquired . | . . . . . Parts Damaged . | . . . . . Bothacking | -11 -10 -10 -10 -9 ------------ Run | Yrd Mat Min Exi Min Used RIF Installer . | . . . . . Robots Hacked . | . . . . . Non-combat . | . . . . . Combat . | . . . . . Robot Hacks Applied . | . . . . . Relay Couplers Released . | . . . . . Fabnet Peak Effective % . | . . . . . Robots Rewired . | . . . . . Allies Hacked . | . . . . . Hacks Repelled . | . . . . . Allies | -11 -10 -10 -10 -9 -------- Run | Yrd Mat Min Exi Min Total Allies . | . . . . . Largest Group . | . . . . . Highest-Rated Group . | . . . . . Highest-Rated Ally . | . . . . . Total Orders . | . . . . . Ally Attacks . | . . . . . Total Damage . | . . . . . Kills . | . . . . . Allies Corrupted . | . . . . . Allies Melted . | . . . . . Intel | -11 -10 -10 -10 -9 ------- Run | Yrd Mat Min Exi Min Robot Analysis Total 4 | . 4 . . . Derelict Logs Recovered 2 | . . 2 . . Drone Launches . | . . . . . Drone Recoveries . | . . . . . Exploration | -11 -10 -10 -10 -9 ------------- Run | Yrd Mat Min Exi Min Turns Passed 2582 | 131 716 796 911 28 Spaces Moved 1804 | 60 480 527 727 10 Core 6 | 6 . . . . Treads . | . . . . . Legs 1798 | 54 480 527 727 10 Wheels . | . . . . . Hover . | . . . . . Flight . | . . . . . Fastest Speed 50 | 50 120 120 120 120 Average Speed 119 | 113 120 120 120 120 Slowest Speed 120 | 120 120 120 120 120 Overloaded Moves . | . . . . . Propulsion Burnouts . | . . . . . Robots Hopped . | . . . . . Cave-ins Triggered . | . . . . . Exploration Rate (%) 50 | 4 55 93 93 9 Regions Visited 4 Branch Regions 3 Pre-discovered Areas 2 | . . 1 1 . Known Exits Taken . | . . . . . Unknown Exits Taken 4 | 1 1 1 1 . Scrap Searched 1 | . . 1 . . Spaces Dug . | . . . . . Terrain Destroyed 32 | . 32 . . . Melee . | . . . . . Projectile . | . . . . . AOE 32 | . 32 . . . Terrain Rammed . | . . . . . Walls Destroyed . | . . . . . Machines Disabled . | . . . . . Actions | -11 -10 -10 -10 -9 --------- Run | Yrd Mat Min Exi Min Total 2073 | 94 559 642 762 16 Wait 106 | . 22 66 18 . Move 1800 | 59 479 526 726 10 Hop . | . . . . . Pick Up 25 | 10 10 2 3 . Fast Attach 5 | . 2 1 2 . Attach 11 | 7 2 1 . 1 Detach . | . . . . . Swap 15 | 1 3 7 4 . Drop 20 | 1 5 9 5 . Fire 87 | 16 36 30 . 5 Melee 4 | . . . 4 . Ram . | . . . . . Kick . | . . . . . Crush . | . . . . . Escape Stasis . | . . . . . Rewire . | . . . . . Trap . | . . . . . Miscellaneous . | . . . . . Route ------- -11/Scrapyard -10/Materials (discovered 2 exits: [*Min x2]) -10/Mines (discovered 3 exits: [*Mat x2] / *Exi) -10/Exiles (discovered 2 exits: [*Min x2]) -9/Mines History --------- Turn | Location | Event 17 | -11/Scrapyard | Discovered new exit (range 14) 132 | -11/Scrapyard | Entered Materials 322 | -10/Materials | Build established: Mutant 326 | -10/Materials | Discovered new exit (range 5) 426 | -10/Materials | Discovered new exit (range 16) 848 | -10/Materials | Entered Mines 850 | -10/Mines | Core integrity fell below 50% 916 | -10/Mines | Learned location of Mines (-9) 1154 | -10/Mines | Learned Materials trap positions 1247 | -10/Mines | Discovered new exit (range 8) 1319 | -10/Mines | Discovered new exit (range 14) 1639 | -10/Mines | Deemed a non-threat by the Exiles lab entrance 1639 | -10/Mines | Discovered new exit (range 5) 1644 | -10/Mines | Entered Exiles 1644 | -10/Exiles | Found Exiles lab destroyed 1661 | -10/Exiles | Discovered new exit (range 15) 2101 | -10/Exiles | Learned location of Zion (-7) 2543 | -10/Exiles | Discovered new exit (range 10) 2555 | -10/Exiles | Entered Mines 2556 | -9/Mines | Assembled infested the area 2561 | -9/Mines | Assisted by a Guerilla fighting off Assembled 2564 | -9/Mines | Met a Derelict bent on vengeance 2574 | -9/Mines | Core integrity fell below 20% 2583 | -9/Mines | Destroyed by as-08489 with Assembled Heavy Rifle Last Messages --------------- group of Assembled to figure out where they're coming from, and they're closing on this area, come on!" 02567_ Slug penetrates Wall. 02570_ Slug penetrates as-73624. 02570_ as-73624 suffers critical hit (Destroy). 02570_ as-73624 destroyed. 02570_ Switching to secondary target: as-80437. 02572_ System corrupted: Energy discharge (-41). 02573_ Slug penetrates as-80437. 02573_ as-80437 destroyed. 02576_ Slug penetrates as-99174. 02576_ as-99174 destroyed. 02576_ as-86628 destroyed. 02578_ Lgt. Nuclear Core severed. 02579_ as-11783 destroyed. 02579_ Slug penetrates Wall. 02580_ Gauss Rifle destroyed. 02581_ ECM Suite destroyed. 02582_ Carbon-fiber Leg destroyed. Map ----- +----------------------------------------------------+ | ???????????????????????????????????????????? | | ???????????????????????????????????????????? | | ???????????????????????????????????????????? | | ???????????????????????????????????????????? | | ???????????????????????????????????????????? | | ???????????????????????????????????????????? | | ???????????????????????????????????????????? | | ???????????????????????????????????????????? | | ???????????????????????????????????????????? | | ???????????????????????????????????????????? | | ???????????????????????????????????????????? | | ???????????????????????????????????????????? | | ???????????????????????????????????????????? | | ???????????????????????????????????????????? | | ???????????????????????????????????????????? | | ???????????????????????????????????????????? | | ????????????#??????????????###?????????????? | | ????????????# ????????????# ##????????????? | | ????????????# ????######## ?????????????? | | ????????????# ???## ??????????????? | | ????????????# ??# ????????????????? | | ?????????#### ??# ?????????????????? | | ????????## ?## ???????????????????? | | ????????# ## a #????????????????????? | | ????????# aaaaaa#?????????????????????? | | ?????????# a%%a@#??????????????????????? | | ?????????# """aa###??????????????????????? | | ????????## """ ##????????????????????????? | | ????????# """ ##????????????????????????? | | ????????# #????????????????????????? | | ????????# ] #????????????????????????? | | ????????## ! #????????????????????????? | | ?????????# ##????????????????????????? | | ?????????## % ##?????????????????????????? | | ??????????### %##??????????????????????????? | | ????????????#% #???????????????????????????? | | ????????????# #???????????????????????????? | | ???????????? " #???????????????????????????? | | ??????????? #???????????????????????????? | | ?????????? #???????????????????????????? | | ?????????# #???????????????????????????? | | ????????? ##???????????????????????????? | | ????????# #?????????????????????????????? | | ???????? ??????????????????????????????? | | ??????? ??????????????????????????????? | | ??????# ??????????????????????????????? | | ??????## ??????????????????????????????? | | ???????## ??????????????????????????????? | | ?????????? ???????????????????????????????? | | ???????????????????????????????????????????? | +----------------------------------------------------+ Best States ------------- Heat Dissipation 25 Energy Generation 14 Energy Capacity 250 Matter Stores 300 Matter Capacity 300 Sight Range 16 Robot Scan Range 14 Terrain Scan Density 10 ECM Strength 1 Evasion (%) 55 Targeting Accuracy 5 Item Schematics ----------------- None Robot Schematics ------------------ None Fabricated ------------ Nothing Alien Tech Used ----------------- None Achievements -------------- None Challenges ------------ None Game ------ Seed HybridForceTreads Manual? 0 Play Time 00:29:49 Cumulative 9.9 hours Start 2024.04.02 @ 00:58:35 End 2024.04.02 @ 01:45:24 Sessions 1 Manual Loads 0 Difficulty Rogue Special Mode None Game No. 14 Rogue 14 Adventurer 0 Explorer 0 Win Type - Total 0 Types 0/0/0/0/0/0/0/0/0 Lore% 16 Gallery% 17 Achievement% 16 Wizard Run 0 Options --------- Layout 1 ASCII 0 Keyboard 0 Movement Mouse Keybinds 0 Fullscreen 2 Font 32/SmallcapsGlow Map View 50x35 Zoom Use 0% Tactical HUD 1 Map Filters NONE Filters NONE Steam 1 RUN: 80292cb8-c803-4651-b441-95216a05d08e